{"text_format":"3","workbook":"xlsx","n_sheets":2,"sheets":["Datos del candidato","Datos comparativos"],"not_rendered":{"defined_names":4},"read":"whole","date_system":"1900"}

{"sheet":"Datos del candidato","index":0,"n_rows":2,"n_cols":13,"rows_kept":2,"merged":[[0,0,0,3]]}
["Datos candidato"]
["Apellidos","Nombre","Iniciales","Puesto solicitado","Estado de la solicitud","Dirección de envío","Teléfono particular","Otro teléfono","Dirección de correo electrónico","Origen de la solicitud","Fecha recepción CV","Nombre del contratante","Notas del contratante"]

{"sheet":"Datos comparativos","index":1,"n_rows":59,"n_cols":12,"rows_kept":59,"merged":[[0,0,0,3]]}
["Datos comparativos de candidatos"]
["Apellidos","Nombre","Iniciales","Puesto solicitado","Empleador actual","Puesto actual","Educación","Estado actual del visado","Años de experiencia en el sector","Aptitudes o experiencia relevantes","Nombre del contratante","Notas del contratante"]
[{"$f":"IF('Datos del candidato'!A3=\"\",\"\",'Datos del candidato'!A3)","v":""},{"$f":"IF('Datos del candidato'!B3=\"\",\"\",'Datos del candidato'!B3)","v":""},{"$f":"IF('Datos del candidato'!C3=\"\",\"\",'Datos del candidato'!C3)","v":""},{"$f":"IF('Datos del candidato'!D3=\"\",\"\",'Datos del candidato'!D3)","v":""},{"$nulls":6},{"$f":"IF('Datos del candidato'!L3=\"\",\"\",'Datos del candidato'!L3)","v":""},{"$f":"IF('Datos del candidato'!M3=\"\",\"\",'Datos del candidato'!M3)","v":""}]
[{"$f":"IF('Datos del candidato'!A4=\"\",\"\",'Datos del candidato'!A4)","v":""},{"$f":"IF('Datos del candidato'!B4=\"\",\"\",'Datos del candidato'!B4)","v":""},{"$f":"IF('Datos del candidato'!C4=\"\",\"\",'Datos del candidato'!C4)","v":""},{"$f":"IF('Datos del candidato'!D4=\"\",\"\",'Datos del candidato'!D4)","v":""},{"$nulls":6},{"$f":"IF('Datos del candidato'!L4=\"\",\"\",'Datos del candidato'!L4)","v":""},{"$f":"IF('Datos del candidato'!M4=\"\",\"\",'Datos del candidato'!M4)","v":""}]
[{"$f":"IF('Datos del candidato'!A5=\"\",\"\",'Datos del candidato'!A5)","v":""},{"$f":"IF('Datos del candidato'!B5=\"\",\"\",'Datos del candidato'!B5)","v":""},{"$f":"IF('Datos del candidato'!C5=\"\",\"\",'Datos del candidato'!C5)","v":""},{"$f":"IF('Datos del candidato'!D5=\"\",\"\",'Datos del candidato'!D5)","v":""},{"$nulls":6},{"$f":"IF('Datos del candidato'!L5=\"\",\"\",'Datos del candidato'!L5)","v":""},{"$f":"IF('Datos del candidato'!M5=\"\",\"\",'Datos del candidato'!M5)","v":""}]
[{"$f":"IF('Datos del candidato'!A6=\"\",\"\",'Datos del candidato'!A6)","v":""},{"$f":"IF('Datos del candidato'!B6=\"\",\"\",'Datos del candidato'!B6)","v":""},{"$f":"IF('Datos del candidato'!C6=\"\",\"\",'Datos del candidato'!C6)","v":""},{"$f":"IF('Datos del candidato'!D6=\"\",\"\",'Datos del candidato'!D6)","v":""},{"$nulls":6},{"$f":"IF('Datos del candidato'!L6=\"\",\"\",'Datos del candidato'!L6)","v":""},{"$f":"IF('Datos del candidato'!M6=\"\",\"\",'Datos del candidato'!M6)","v":""}]
[{"$f":"IF('Datos del candidato'!A7=\"\",\"\",'Datos del candidato'!A7)","v":""},{"$f":"IF('Datos del candidato'!B7=\"\",\"\",'Datos del candidato'!B7)","v":""},{"$f":"IF('Datos del candidato'!C7=\"\",\"\",'Datos del candidato'!C7)","v":""},{"$f":"IF('Datos del candidato'!D7=\"\",\"\",'Datos del candidato'!D7)","v":""},{"$nulls":6},{"$f":"IF('Datos del candidato'!L7=\"\",\"\",'Datos del candidato'!L7)","v":""},{"$f":"IF('Datos del candidato'!M7=\"\",\"\",'Datos del candidato'!M7)","v":""}]
[{"$f":"IF('Datos del candidato'!A8=\"\",\"\",'Datos del candidato'!A8)","v":""},{"$f":"IF('Datos del candidato'!B8=\"\",\"\",'Datos del candidato'!B8)","v":""},{"$f":"IF('Datos del candidato'!C8=\"\",\"\",'Datos del candidato'!C8)","v":""},{"$f":"IF('Datos del candidato'!D8=\"\",\"\",'Datos del candidato'!D8)","v":""},{"$nulls":6},{"$f":"IF('Datos del candidato'!L8=\"\",\"\",'Datos del candidato'!L8)","v":""},{"$f":"IF('Datos del candidato'!M8=\"\",\"\",'Datos del candidato'!M8)","v":""}]
[{"$f":"IF('Datos del candidato'!A9=\"\",\"\",'Datos del candidato'!A9)","v":""},{"$f":"IF('Datos del candidato'!B9=\"\",\"\",'Datos del candidato'!B9)","v":""},{"$f":"IF('Datos del candidato'!C9=\"\",\"\",'Datos del candidato'!C9)","v":""},{"$f":"IF('Datos del candidato'!D9=\"\",\"\",'Datos del candidato'!D9)","v":""},{"$nulls":6},{"$f":"IF('Datos del candidato'!L9=\"\",\"\",'Datos del candidato'!L9)","v":""},{"$f":"IF('Datos del candidato'!M9=\"\",\"\",'Datos del candidato'!M9)","v":""}]
[{"$f":"IF('Datos del candidato'!A10=\"\",\"\",'Datos del candidato'!A10)","v":""},{"$f":"IF('Datos del candidato'!B10=\"\",\"\",'Datos del candidato'!B10)","v":""},{"$f":"IF('Datos del candidato'!C10=\"\",\"\",'Datos del candidato'!C10)","v":""},{"$f":"IF('Datos del candidato'!D10=\"\",\"\",'Datos del candidato'!D10)","v":""},{"$nulls":6},{"$f":"IF('Datos del candidato'!L10=\"\",\"\",'Datos del candidato'!L10)","v":""},{"$f":"IF('Datos del candidato'!M10=\"\",\"\",'Datos del candidato'!M10)","v":""}]
[{"$f":"IF('Datos del candidato'!A11=\"\",\"\",'Datos del candidato'!A11)","v":""},{"$f":"IF('Datos del candidato'!B11=\"\",\"\",'Datos del candidato'!B11)","v":""},{"$f":"IF('Datos del candidato'!C11=\"\",\"\",'Datos del candidato'!C11)","v":""},{"$f":"IF('Datos del candidato'!D11=\"\",\"\",'Datos del candidato'!D11)","v":""},{"$nulls":6},{"$f":"IF('Datos del candidato'!L11=\"\",\"\",'Datos del candidato'!L11)","v":""},{"$f":"IF('Datos del candidato'!M11=\"\",\"\",'Datos del candidato'!M11)","v":""}]
[{"$f":"IF('Datos del candidato'!A12=\"\",\"\",'Datos del candidato'!A12)","v":""},{"$f":"IF('Datos del candidato'!B12=\"\",\"\",'Datos del candidato'!B12)","v":""},{"$f":"IF('Datos del candidato'!C12=\"\",\"\",'Datos del candidato'!C12)","v":""},{"$f":"IF('Datos del candidato'!D12=\"\",\"\",'Datos del candidato'!D12)","v":""},{"$nulls":6},{"$f":"IF('Datos del candidato'!L12=\"\",\"\",'Datos del candidato'!L12)","v":""},{"$f":"IF('Datos del candidato'!M12=\"\",\"\",'Datos del candidato'!M12)","v":""}]
[{"$f":"IF('Datos del candidato'!A13=\"\",\"\",'Datos del candidato'!A13)","v":""},{"$f":"IF('Datos del candidato'!B13=\"\",\"\",'Datos del candidato'!B13)","v":""},{"$f":"IF('Datos del candidato'!C13=\"\",\"\",'Datos del candidato'!C13)","v":""},{"$f":"IF('Datos del candidato'!D13=\"\",\"\",'Datos del candidato'!D13)","v":""},{"$nulls":6},{"$f":"IF('Datos del candidato'!L13=\"\",\"\",'Datos del candidato'!L13)","v":""},{"$f":"IF('Datos del candidato'!M13=\"\",\"\",'Datos del candidato'!M13)","v":""}]
[{"$f":"IF('Datos del candidato'!A14=\"\",\"\",'Datos del candidato'!A14)","v":""},{"$f":"IF('Datos del candidato'!B14=\"\",\"\",'Datos del candidato'!B14)","v":""},{"$f":"IF('Datos del candidato'!C14=\"\",\"\",'Datos del candidato'!C14)","v":""},{"$f":"IF('Datos del candidato'!D14=\"\",\"\",'Datos del candidato'!D14)","v":""},{"$nulls":6},{"$f":"IF('Datos del candidato'!L14=\"\",\"\",'Datos del candidato'!L14)","v":""},{"$f":"IF('Datos del candidato'!M14=\"\",\"\",'Datos del candidato'!M14)","v":""}]
[{"$f":"IF('Datos del candidato'!A15=\"\",\"\",'Datos del candidato'!A15)","v":""},{"$f":"IF('Datos del candidato'!B15=\"\",\"\",'Datos del candidato'!B15)","v":""},{"$f":"IF('Datos del candidato'!C15=\"\",\"\",'Datos del candidato'!C15)","v":""},{"$f":"IF('Datos del candidato'!D15=\"\",\"\",'Datos del candidato'!D15)","v":""},{"$nulls":6},{"$f":"IF('Datos del candidato'!L15=\"\",\"\",'Datos del candidato'!L15)","v":""},{"$f":"IF('Datos del candidato'!M15=\"\",\"\",'Datos del candidato'!M15)","v":""}]
[{"$f":"IF('Datos del candidato'!A16=\"\",\"\",'Datos del candidato'!A16)","v":""},{"$f":"IF('Datos del candidato'!B16=\"\",\"\",'Datos del candidato'!B16)","v":""},{"$f":"IF('Datos del candidato'!C16=\"\",\"\",'Datos del candidato'!C16)","v":""},{"$f":"IF('Datos del candidato'!D16=\"\",\"\",'Datos del candidato'!D16)","v":""},{"$nulls":6},{"$f":"IF('Datos del candidato'!L16=\"\",\"\",'Datos del candidato'!L16)","v":""},{"$f":"IF('Datos del candidato'!M16=\"\",\"\",'Datos del candidato'!M16)","v":""}]
[{"$f":"IF('Datos del candidato'!A17=\"\",\"\",'Datos del candidato'!A17)","v":""},{"$f":"IF('Datos del candidato'!B17=\"\",\"\",'Datos del candidato'!B17)","v":""},{"$f":"IF('Datos del candidato'!C17=\"\",\"\",'Datos del candidato'!C17)","v":""},{"$f":"IF('Datos del candidato'!D17=\"\",\"\",'Datos del candidato'!D17)","v":""},{"$nulls":6},{"$f":"IF('Datos del candidato'!L17=\"\",\"\",'Datos del candidato'!L17)","v":""},{"$f":"IF('Datos del candidato'!M17=\"\",\"\",'Datos del candidato'!M17)","v":""}]
[{"$f":"IF('Datos del candidato'!A18=\"\",\"\",'Datos del candidato'!A18)","v":""},{"$f":"IF('Datos del candidato'!B18=\"\",\"\",'Datos del candidato'!B18)","v":""},{"$f":"IF('Datos del candidato'!C18=\"\",\"\",'Datos del candidato'!C18)","v":""},{"$f":"IF('Datos del candidato'!D18=\"\",\"\",'Datos del candidato'!D18)","v":""},{"$nulls":6},{"$f":"IF('Datos del candidato'!L18=\"\",\"\",'Datos del candidato'!L18)","v":""},{"$f":"IF('Datos del candidato'!M18=\"\",\"\",'Datos del candidato'!M18)","v":""}]
[{"$f":"IF('Datos del candidato'!A19=\"\",\"\",'Datos del candidato'!A19)","v":""},{"$f":"IF('Datos del candidato'!B19=\"\",\"\",'Datos del candidato'!B19)","v":""},{"$f":"IF('Datos del candidato'!C19=\"\",\"\",'Datos del candidato'!C19)","v":""},{"$f":"IF('Datos del candidato'!D19=\"\",\"\",'Datos del candidato'!D19)","v":""},{"$nulls":6},{"$f":"IF('Datos del candidato'!L19=\"\",\"\",'Datos del candidato'!L19)","v":""},{"$f":"IF('Datos del candidato'!M19=\"\",\"\",'Datos del candidato'!M19)","v":""}]
[{"$f":"IF('Datos del candidato'!A20=\"\",\"\",'Datos del candidato'!A20)","v":""},{"$f":"IF('Datos del candidato'!B20=\"\",\"\",'Datos del candidato'!B20)","v":""},{"$f":"IF('Datos del candidato'!C20=\"\",\"\",'Datos del candidato'!C20)","v":""},{"$f":"IF('Datos del candidato'!D20=\"\",\"\",'Datos del candidato'!D20)","v":""},{"$nulls":6},{"$f":"IF('Datos del candidato'!L20=\"\",\"\",'Datos del candidato'!L20)","v":""},{"$f":"IF('Datos del candidato'!M20=\"\",\"\",'Datos del candidato'!M20)","v":""}]
[{"$f":"IF('Datos del candidato'!A21=\"\",\"\",'Datos del candidato'!A21)","v":""},{"$f":"IF('Datos del candidato'!B21=\"\",\"\",'Datos del candidato'!B21)","v":""},{"$f":"IF('Datos del candidato'!C21=\"\",\"\",'Datos del candidato'!C21)","v":""},{"$f":"IF('Datos del candidato'!D21=\"\",\"\",'Datos del candidato'!D21)","v":""},{"$nulls":6},{"$f":"IF('Datos del candidato'!L21=\"\",\"\",'Datos del candidato'!L21)","v":""},{"$f":"IF('Datos del candidato'!M21=\"\",\"\",'Datos del candidato'!M21)","v":""}]
[{"$f":"IF('Datos del candidato'!A22=\"\",\"\",'Datos del candidato'!A22)","v":""},{"$f":"IF('Datos del candidato'!B22=\"\",\"\",'Datos del candidato'!B22)","v":""},{"$f":"IF('Datos del candidato'!C22=\"\",\"\",'Datos del candidato'!C22)","v":""},{"$f":"IF('Datos del candidato'!D22=\"\",\"\",'Datos del candidato'!D22)","v":""},{"$nulls":6},{"$f":"IF('Datos del candidato'!L22=\"\",\"\",'Datos del candidato'!L22)","v":""},{"$f":"IF('Datos del candidato'!M22=\"\",\"\",'Datos del candidato'!M22)","v":""}]
[{"$f":"IF('Datos del candidato'!A23=\"\",\"\",'Datos del candidato'!A23)","v":""},{"$f":"IF('Datos del candidato'!B23=\"\",\"\",'Datos del candidato'!B23)","v":""},{"$f":"IF('Datos del candidato'!C23=\"\",\"\",'Datos del candidato'!C23)","v":""},{"$f":"IF('Datos del candidato'!D23=\"\",\"\",'Datos del candidato'!D23)","v":""},{"$nulls":6},{"$f":"IF('Datos del candidato'!L23=\"\",\"\",'Datos del candidato'!L23)","v":""},{"$f":"IF('Datos del candidato'!M23=\"\",\"\",'Datos del candidato'!M23)","v":""}]
[{"$f":"IF('Datos del candidato'!A24=\"\",\"\",'Datos del candidato'!A24)","v":""},{"$f":"IF('Datos del candidato'!B24=\"\",\"\",'Datos del candidato'!B24)","v":""},{"$f":"IF('Datos del candidato'!C24=\"\",\"\",'Datos del candidato'!C24)","v":""},{"$f":"IF('Datos del candidato'!D24=\"\",\"\",'Datos del candidato'!D24)","v":""},{"$nulls":6},{"$f":"IF('Datos del candidato'!L24=\"\",\"\",'Datos del candidato'!L24)","v":""},{"$f":"IF('Datos del candidato'!M24=\"\",\"\",'Datos del candidato'!M24)","v":""}]
[{"$f":"IF('Datos del candidato'!A25=\"\",\"\",'Datos del candidato'!A25)","v":""},{"$f":"IF('Datos del candidato'!B25=\"\",\"\",'Datos del candidato'!B25)","v":""},{"$f":"IF('Datos del candidato'!C25=\"\",\"\",'Datos del candidato'!C25)","v":""},{"$f":"IF('Datos del candidato'!D25=\"\",\"\",'Datos del candidato'!D25)","v":""},{"$nulls":6},{"$f":"IF('Datos del candidato'!L25=\"\",\"\",'Datos del candidato'!L25)","v":""},{"$f":"IF('Datos del candidato'!M25=\"\",\"\",'Datos del candidato'!M25)","v":""}]
[{"$f":"IF('Datos del candidato'!A26=\"\",\"\",'Datos del candidato'!A26)","v":""},{"$f":"IF('Datos del candidato'!B26=\"\",\"\",'Datos del candidato'!B26)","v":""},{"$f":"IF('Datos del candidato'!C26=\"\",\"\",'Datos del candidato'!C26)","v":""},{"$f":"IF('Datos del candidato'!D26=\"\",\"\",'Datos del candidato'!D26)","v":""},{"$nulls":6},{"$f":"IF('Datos del candidato'!L26=\"\",\"\",'Datos del candidato'!L26)","v":""},{"$f":"IF('Datos del candidato'!M26=\"\",\"\",'Datos del candidato'!M26)","v":""}]
[{"$f":"IF('Datos del candidato'!A27=\"\",\"\",'Datos del candidato'!A27)","v":""},{"$f":"IF('Datos del candidato'!B27=\"\",\"\",'Datos del candidato'!B27)","v":""},{"$f":"IF('Datos del candidato'!C27=\"\",\"\",'Datos del candidato'!C27)","v":""},{"$f":"IF('Datos del candidato'!D27=\"\",\"\",'Datos del candidato'!D27)","v":""},{"$nulls":6},{"$f":"IF('Datos del candidato'!L27=\"\",\"\",'Datos del candidato'!L27)","v":""},{"$f":"IF('Datos del candidato'!M27=\"\",\"\",'Datos del candidato'!M27)","v":""}]
[{"$f":"IF('Datos del candidato'!A28=\"\",\"\",'Datos del candidato'!A28)","v":""},{"$f":"IF('Datos del candidato'!B28=\"\",\"\",'Datos del candidato'!B28)","v":""},{"$f":"IF('Datos del candidato'!C28=\"\",\"\",'Datos del candidato'!C28)","v":""},{"$f":"IF('Datos del candidato'!D28=\"\",\"\",'Datos del candidato'!D28)","v":""},{"$nulls":6},{"$f":"IF('Datos del candidato'!L28=\"\",\"\",'Datos del candidato'!L28)","v":""},{"$f":"IF('Datos del candidato'!M28=\"\",\"\",'Datos del candidato'!M28)","v":""}]
[{"$f":"IF('Datos del candidato'!A29=\"\",\"\",'Datos del candidato'!A29)","v":""},{"$f":"IF('Datos del candidato'!B29=\"\",\"\",'Datos del candidato'!B29)","v":""},{"$f":"IF('Datos del candidato'!C29=\"\",\"\",'Datos del candidato'!C29)","v":""},{"$f":"IF('Datos del candidato'!D29=\"\",\"\",'Datos del candidato'!D29)","v":""},{"$nulls":6},{"$f":"IF('Datos del candidato'!L29=\"\",\"\",'Datos del candidato'!L29)","v":""},{"$f":"IF('Datos del candidato'!M29=\"\",\"\",'Datos del candidato'!M29)","v":""}]
[{"$f":"IF('Datos del candidato'!A30=\"\",\"\",'Datos del candidato'!A30)","v":""},{"$f":"IF('Datos del candidato'!B30=\"\",\"\",'Datos del candidato'!B30)","v":""},{"$f":"IF('Datos del candidato'!C30=\"\",\"\",'Datos del candidato'!C30)","v":""},{"$f":"IF('Datos del candidato'!D30=\"\",\"\",'Datos del candidato'!D30)","v":""},{"$nulls":6},{"$f":"IF('Datos del candidato'!L30=\"\",\"\",'Datos del candidato'!L30)","v":""},{"$f":"IF('Datos del candidato'!M30=\"\",\"\",'Datos del candidato'!M30)","v":""}]
[{"$f":"IF('Datos del candidato'!A31=\"\",\"\",'Datos del candidato'!A31)","v":""},{"$f":"IF('Datos del candidato'!B31=\"\",\"\",'Datos del candidato'!B31)","v":""},{"$f":"IF('Datos del candidato'!C31=\"\",\"\",'Datos del candidato'!C31)","v":""},{"$f":"IF('Datos del candidato'!D31=\"\",\"\",'Datos del candidato'!D31)","v":""},{"$nulls":6},{"$f":"IF('Datos del candidato'!L31=\"\",\"\",'Datos del candidato'!L31)","v":""},{"$f":"IF('Datos del candidato'!M31=\"\",\"\",'Datos del candidato'!M31)","v":""}]
[{"$f":"IF('Datos del candidato'!A32=\"\",\"\",'Datos del candidato'!A32)","v":""},{"$f":"IF('Datos del candidato'!B32=\"\",\"\",'Datos del candidato'!B32)","v":""},{"$f":"IF('Datos del candidato'!C32=\"\",\"\",'Datos del candidato'!C32)","v":""},{"$f":"IF('Datos del candidato'!D32=\"\",\"\",'Datos del candidato'!D32)","v":""},{"$nulls":6},{"$f":"IF('Datos del candidato'!L32=\"\",\"\",'Datos del candidato'!L32)","v":""},{"$f":"IF('Datos del candidato'!M32=\"\",\"\",'Datos del candidato'!M32)","v":""}]
[{"$f":"IF('Datos del candidato'!A33=\"\",\"\",'Datos del candidato'!A33)","v":""},{"$f":"IF('Datos del candidato'!B33=\"\",\"\",'Datos del candidato'!B33)","v":""},{"$f":"IF('Datos del candidato'!C33=\"\",\"\",'Datos del candidato'!C33)","v":""},{"$f":"IF('Datos del candidato'!D33=\"\",\"\",'Datos del candidato'!D33)","v":""},{"$nulls":6},{"$f":"IF('Datos del candidato'!L33=\"\",\"\",'Datos del candidato'!L33)","v":""},{"$f":"IF('Datos del candidato'!M33=\"\",\"\",'Datos del candidato'!M33)","v":""}]
[{"$f":"IF('Datos del candidato'!A34=\"\",\"\",'Datos del candidato'!A34)","v":""},{"$f":"IF('Datos del candidato'!B34=\"\",\"\",'Datos del candidato'!B34)","v":""},{"$f":"IF('Datos del candidato'!C34=\"\",\"\",'Datos del candidato'!C34)","v":""},{"$f":"IF('Datos del candidato'!D34=\"\",\"\",'Datos del candidato'!D34)","v":""},{"$nulls":6},{"$f":"IF('Datos del candidato'!L34=\"\",\"\",'Datos del candidato'!L34)","v":""},{"$f":"IF('Datos del candidato'!M34=\"\",\"\",'Datos del candidato'!M34)","v":""}]
[{"$f":"IF('Datos del candidato'!A35=\"\",\"\",'Datos del candidato'!A35)","v":""},{"$f":"IF('Datos del candidato'!B35=\"\",\"\",'Datos del candidato'!B35)","v":""},{"$f":"IF('Datos del candidato'!C35=\"\",\"\",'Datos del candidato'!C35)","v":""},{"$f":"IF('Datos del candidato'!D35=\"\",\"\",'Datos del candidato'!D35)","v":""},{"$nulls":6},{"$f":"IF('Datos del candidato'!L35=\"\",\"\",'Datos del candidato'!L35)","v":""},{"$f":"IF('Datos del candidato'!M35=\"\",\"\",'Datos del candidato'!M35)","v":""}]
[{"$f":"IF('Datos del candidato'!A36=\"\",\"\",'Datos del candidato'!A36)","v":""},{"$f":"IF('Datos del candidato'!B36=\"\",\"\",'Datos del candidato'!B36)","v":""},{"$f":"IF('Datos del candidato'!C36=\"\",\"\",'Datos del candidato'!C36)","v":""},{"$f":"IF('Datos del candidato'!D36=\"\",\"\",'Datos del candidato'!D36)","v":""},{"$nulls":6},{"$f":"IF('Datos del candidato'!L36=\"\",\"\",'Datos del candidato'!L36)","v":""},{"$f":"IF('Datos del candidato'!M36=\"\",\"\",'Datos del candidato'!M36)","v":""}]
[{"$f":"IF('Datos del candidato'!A37=\"\",\"\",'Datos del candidato'!A37)","v":""},{"$f":"IF('Datos del candidato'!B37=\"\",\"\",'Datos del candidato'!B37)","v":""},{"$f":"IF('Datos del candidato'!C37=\"\",\"\",'Datos del candidato'!C37)","v":""},{"$f":"IF('Datos del candidato'!D37=\"\",\"\",'Datos del candidato'!D37)","v":""},{"$nulls":6},{"$f":"IF('Datos del candidato'!L37=\"\",\"\",'Datos del candidato'!L37)","v":""},{"$f":"IF('Datos del candidato'!M37=\"\",\"\",'Datos del candidato'!M37)","v":""}]
[{"$f":"IF('Datos del candidato'!A38=\"\",\"\",'Datos del candidato'!A38)","v":""},{"$f":"IF('Datos del candidato'!B38=\"\",\"\",'Datos del candidato'!B38)","v":""},{"$f":"IF('Datos del candidato'!C38=\"\",\"\",'Datos del candidato'!C38)","v":""},{"$f":"IF('Datos del candidato'!D38=\"\",\"\",'Datos del candidato'!D38)","v":""},{"$nulls":6},{"$f":"IF('Datos del candidato'!L38=\"\",\"\",'Datos del candidato'!L38)","v":""},{"$f":"IF('Datos del candidato'!M38=\"\",\"\",'Datos del candidato'!M38)","v":""}]
[{"$f":"IF('Datos del candidato'!A39=\"\",\"\",'Datos del candidato'!A39)","v":""},{"$f":"IF('Datos del candidato'!B39=\"\",\"\",'Datos del candidato'!B39)","v":""},{"$f":"IF('Datos del candidato'!C39=\"\",\"\",'Datos del candidato'!C39)","v":""},{"$f":"IF('Datos del candidato'!D39=\"\",\"\",'Datos del candidato'!D39)","v":""},{"$nulls":6},{"$f":"IF('Datos del candidato'!L39=\"\",\"\",'Datos del candidato'!L39)","v":""},{"$f":"IF('Datos del candidato'!M39=\"\",\"\",'Datos del candidato'!M39)","v":""}]
[{"$f":"IF('Datos del candidato'!A40=\"\",\"\",'Datos del candidato'!A40)","v":""},{"$f":"IF('Datos del candidato'!B40=\"\",\"\",'Datos del candidato'!B40)","v":""},{"$f":"IF('Datos del candidato'!C40=\"\",\"\",'Datos del candidato'!C40)","v":""},{"$f":"IF('Datos del candidato'!D40=\"\",\"\",'Datos del candidato'!D40)","v":""},{"$nulls":6},{"$f":"IF('Datos del candidato'!L40=\"\",\"\",'Datos del candidato'!L40)","v":""},{"$f":"IF('Datos del candidato'!M40=\"\",\"\",'Datos del candidato'!M40)","v":""}]
[{"$f":"IF('Datos del candidato'!A41=\"\",\"\",'Datos del candidato'!A41)","v":""},{"$f":"IF('Datos del candidato'!B41=\"\",\"\",'Datos del candidato'!B41)","v":""},{"$f":"IF('Datos del candidato'!C41=\"\",\"\",'Datos del candidato'!C41)","v":""},{"$f":"IF('Datos del candidato'!D41=\"\",\"\",'Datos del candidato'!D41)","v":""},{"$nulls":6},{"$f":"IF('Datos del candidato'!L41=\"\",\"\",'Datos del candidato'!L41)","v":""},{"$f":"IF('Datos del candidato'!M41=\"\",\"\",'Datos del candidato'!M41)","v":""}]
[{"$f":"IF('Datos del candidato'!A42=\"\",\"\",'Datos del candidato'!A42)","v":""},{"$f":"IF('Datos del candidato'!B42=\"\",\"\",'Datos del candidato'!B42)","v":""},{"$f":"IF('Datos del candidato'!C42=\"\",\"\",'Datos del candidato'!C42)","v":""},{"$f":"IF('Datos del candidato'!D42=\"\",\"\",'Datos del candidato'!D42)","v":""},{"$nulls":6},{"$f":"IF('Datos del candidato'!L42=\"\",\"\",'Datos del candidato'!L42)","v":""},{"$f":"IF('Datos del candidato'!M42=\"\",\"\",'Datos del candidato'!M42)","v":""}]
[{"$f":"IF('Datos del candidato'!A43=\"\",\"\",'Datos del candidato'!A43)","v":""},{"$f":"IF('Datos del candidato'!B43=\"\",\"\",'Datos del candidato'!B43)","v":""},{"$f":"IF('Datos del candidato'!C43=\"\",\"\",'Datos del candidato'!C43)","v":""},{"$f":"IF('Datos del candidato'!D43=\"\",\"\",'Datos del candidato'!D43)","v":""},{"$nulls":6},{"$f":"IF('Datos del candidato'!L43=\"\",\"\",'Datos del candidato'!L43)","v":""},{"$f":"IF('Datos del candidato'!M43=\"\",\"\",'Datos del candidato'!M43)","v":""}]
[{"$f":"IF('Datos del candidato'!A44=\"\",\"\",'Datos del candidato'!A44)","v":""},{"$f":"IF('Datos del candidato'!B44=\"\",\"\",'Datos del candidato'!B44)","v":""},{"$f":"IF('Datos del candidato'!C44=\"\",\"\",'Datos del candidato'!C44)","v":""},{"$f":"IF('Datos del candidato'!D44=\"\",\"\",'Datos del candidato'!D44)","v":""},{"$nulls":6},{"$f":"IF('Datos del candidato'!L44=\"\",\"\",'Datos del candidato'!L44)","v":""},{"$f":"IF('Datos del candidato'!M44=\"\",\"\",'Datos del candidato'!M44)","v":""}]
[{"$f":"IF('Datos del candidato'!A45=\"\",\"\",'Datos del candidato'!A45)","v":""},{"$f":"IF('Datos del candidato'!B45=\"\",\"\",'Datos del candidato'!B45)","v":""},{"$f":"IF('Datos del candidato'!C45=\"\",\"\",'Datos del candidato'!C45)","v":""},{"$f":"IF('Datos del candidato'!D45=\"\",\"\",'Datos del candidato'!D45)","v":""},{"$nulls":6},{"$f":"IF('Datos del candidato'!L45=\"\",\"\",'Datos del candidato'!L45)","v":""},{"$f":"IF('Datos del candidato'!M45=\"\",\"\",'Datos del candidato'!M45)","v":""}]
[{"$f":"IF('Datos del candidato'!A46=\"\",\"\",'Datos del candidato'!A46)","v":""},{"$f":"IF('Datos del candidato'!B46=\"\",\"\",'Datos del candidato'!B46)","v":""},{"$f":"IF('Datos del candidato'!C46=\"\",\"\",'Datos del candidato'!C46)","v":""},{"$f":"IF('Datos del candidato'!D46=\"\",\"\",'Datos del candidato'!D46)","v":""},{"$nulls":6},{"$f":"IF('Datos del candidato'!L46=\"\",\"\",'Datos del candidato'!L46)","v":""},{"$f":"IF('Datos del candidato'!M46=\"\",\"\",'Datos del candidato'!M46)","v":""}]
[{"$f":"IF('Datos del candidato'!A47=\"\",\"\",'Datos del candidato'!A47)","v":""},{"$f":"IF('Datos del candidato'!B47=\"\",\"\",'Datos del candidato'!B47)","v":""},{"$f":"IF('Datos del candidato'!C47=\"\",\"\",'Datos del candidato'!C47)","v":""},{"$f":"IF('Datos del candidato'!D47=\"\",\"\",'Datos del candidato'!D47)","v":""},{"$nulls":6},{"$f":"IF('Datos del candidato'!L47=\"\",\"\",'Datos del candidato'!L47)","v":""},{"$f":"IF('Datos del candidato'!M47=\"\",\"\",'Datos del candidato'!M47)","v":""}]
[{"$f":"IF('Datos del candidato'!A48=\"\",\"\",'Datos del candidato'!A48)","v":""},{"$f":"IF('Datos del candidato'!B48=\"\",\"\",'Datos del candidato'!B48)","v":""},{"$f":"IF('Datos del candidato'!C48=\"\",\"\",'Datos del candidato'!C48)","v":""},{"$f":"IF('Datos del candidato'!D48=\"\",\"\",'Datos del candidato'!D48)","v":""},{"$nulls":6},{"$f":"IF('Datos del candidato'!L48=\"\",\"\",'Datos del candidato'!L48)","v":""},{"$f":"IF('Datos del candidato'!M48=\"\",\"\",'Datos del candidato'!M48)","v":""}]
[{"$f":"IF('Datos del candidato'!A49=\"\",\"\",'Datos del candidato'!A49)","v":""},{"$f":"IF('Datos del candidato'!B49=\"\",\"\",'Datos del candidato'!B49)","v":""},{"$f":"IF('Datos del candidato'!C49=\"\",\"\",'Datos del candidato'!C49)","v":""},{"$f":"IF('Datos del candidato'!D49=\"\",\"\",'Datos del candidato'!D49)","v":""},{"$nulls":6},{"$f":"IF('Datos del candidato'!L49=\"\",\"\",'Datos del candidato'!L49)","v":""},{"$f":"IF('Datos del candidato'!M49=\"\",\"\",'Datos del candidato'!M49)","v":""}]
[{"$f":"IF('Datos del candidato'!A50=\"\",\"\",'Datos del candidato'!A50)","v":""},{"$f":"IF('Datos del candidato'!B50=\"\",\"\",'Datos del candidato'!B50)","v":""},{"$f":"IF('Datos del candidato'!C50=\"\",\"\",'Datos del candidato'!C50)","v":""},{"$f":"IF('Datos del candidato'!D50=\"\",\"\",'Datos del candidato'!D50)","v":""},{"$nulls":6},{"$f":"IF('Datos del candidato'!L50=\"\",\"\",'Datos del candidato'!L50)","v":""},{"$f":"IF('Datos del candidato'!M50=\"\",\"\",'Datos del candidato'!M50)","v":""}]
[{"$f":"IF('Datos del candidato'!A51=\"\",\"\",'Datos del candidato'!A51)","v":""},{"$f":"IF('Datos del candidato'!B51=\"\",\"\",'Datos del candidato'!B51)","v":""},{"$f":"IF('Datos del candidato'!C51=\"\",\"\",'Datos del candidato'!C51)","v":""},{"$f":"IF('Datos del candidato'!D51=\"\",\"\",'Datos del candidato'!D51)","v":""},{"$nulls":6},{"$f":"IF('Datos del candidato'!L51=\"\",\"\",'Datos del candidato'!L51)","v":""},{"$f":"IF('Datos del candidato'!M51=\"\",\"\",'Datos del candidato'!M51)","v":""}]
[{"$f":"IF('Datos del candidato'!A52=\"\",\"\",'Datos del candidato'!A52)","v":""},{"$f":"IF('Datos del candidato'!B52=\"\",\"\",'Datos del candidato'!B52)","v":""},{"$f":"IF('Datos del candidato'!C52=\"\",\"\",'Datos del candidato'!C52)","v":""},{"$f":"IF('Datos del candidato'!D52=\"\",\"\",'Datos del candidato'!D52)","v":""},{"$nulls":6},{"$f":"IF('Datos del candidato'!L52=\"\",\"\",'Datos del candidato'!L52)","v":""},{"$f":"IF('Datos del candidato'!M52=\"\",\"\",'Datos del candidato'!M52)","v":""}]
[{"$f":"IF('Datos del candidato'!A53=\"\",\"\",'Datos del candidato'!A53)","v":""},{"$f":"IF('Datos del candidato'!B53=\"\",\"\",'Datos del candidato'!B53)","v":""},{"$f":"IF('Datos del candidato'!C53=\"\",\"\",'Datos del candidato'!C53)","v":""},{"$f":"IF('Datos del candidato'!D53=\"\",\"\",'Datos del candidato'!D53)","v":""},{"$nulls":6},{"$f":"IF('Datos del candidato'!L53=\"\",\"\",'Datos del candidato'!L53)","v":""},{"$f":"IF('Datos del candidato'!M53=\"\",\"\",'Datos del candidato'!M53)","v":""}]
[{"$f":"IF('Datos del candidato'!A54=\"\",\"\",'Datos del candidato'!A54)","v":""},{"$f":"IF('Datos del candidato'!B54=\"\",\"\",'Datos del candidato'!B54)","v":""},{"$f":"IF('Datos del candidato'!C54=\"\",\"\",'Datos del candidato'!C54)","v":""},{"$f":"IF('Datos del candidato'!D54=\"\",\"\",'Datos del candidato'!D54)","v":""},{"$nulls":6},{"$f":"IF('Datos del candidato'!L54=\"\",\"\",'Datos del candidato'!L54)","v":""},{"$f":"IF('Datos del candidato'!M54=\"\",\"\",'Datos del candidato'!M54)","v":""}]
[{"$f":"IF('Datos del candidato'!A55=\"\",\"\",'Datos del candidato'!A55)","v":""},{"$f":"IF('Datos del candidato'!B55=\"\",\"\",'Datos del candidato'!B55)","v":""},{"$f":"IF('Datos del candidato'!C55=\"\",\"\",'Datos del candidato'!C55)","v":""},{"$f":"IF('Datos del candidato'!D55=\"\",\"\",'Datos del candidato'!D55)","v":""},{"$nulls":6},{"$f":"IF('Datos del candidato'!L55=\"\",\"\",'Datos del candidato'!L55)","v":""},{"$f":"IF('Datos del candidato'!M55=\"\",\"\",'Datos del candidato'!M55)","v":""}]
[{"$f":"IF('Datos del candidato'!A56=\"\",\"\",'Datos del candidato'!A56)","v":""},{"$f":"IF('Datos del candidato'!B56=\"\",\"\",'Datos del candidato'!B56)","v":""},{"$f":"IF('Datos del candidato'!C56=\"\",\"\",'Datos del candidato'!C56)","v":""},{"$f":"IF('Datos del candidato'!D56=\"\",\"\",'Datos del candidato'!D56)","v":""},{"$nulls":6},{"$f":"IF('Datos del candidato'!L56=\"\",\"\",'Datos del candidato'!L56)","v":""},{"$f":"IF('Datos del candidato'!M56=\"\",\"\",'Datos del candidato'!M56)","v":""}]
[{"$f":"IF('Datos del candidato'!A57=\"\",\"\",'Datos del candidato'!A57)","v":""},{"$f":"IF('Datos del candidato'!B57=\"\",\"\",'Datos del candidato'!B57)","v":""},{"$f":"IF('Datos del candidato'!C57=\"\",\"\",'Datos del candidato'!C57)","v":""},{"$f":"IF('Datos del candidato'!D57=\"\",\"\",'Datos del candidato'!D57)","v":""},{"$nulls":6},{"$f":"IF('Datos del candidato'!L57=\"\",\"\",'Datos del candidato'!L57)","v":""},{"$f":"IF('Datos del candidato'!M57=\"\",\"\",'Datos del candidato'!M57)","v":""}]
[{"$f":"IF('Datos del candidato'!A58=\"\",\"\",'Datos del candidato'!A58)","v":""},{"$f":"IF('Datos del candidato'!B58=\"\",\"\",'Datos del candidato'!B58)","v":""},{"$f":"IF('Datos del candidato'!C58=\"\",\"\",'Datos del candidato'!C58)","v":""},{"$f":"IF('Datos del candidato'!D58=\"\",\"\",'Datos del candidato'!D58)","v":""},{"$nulls":6},{"$f":"IF('Datos del candidato'!L58=\"\",\"\",'Datos del candidato'!L58)","v":""},{"$f":"IF('Datos del candidato'!M58=\"\",\"\",'Datos del candidato'!M58)","v":""}]
[{"$f":"IF('Datos del candidato'!A59=\"\",\"\",'Datos del candidato'!A59)","v":""},{"$f":"IF('Datos del candidato'!B59=\"\",\"\",'Datos del candidato'!B59)","v":""},{"$f":"IF('Datos del candidato'!C59=\"\",\"\",'Datos del candidato'!C59)","v":""},{"$f":"IF('Datos del candidato'!D59=\"\",\"\",'Datos del candidato'!D59)","v":""},{"$nulls":6},{"$f":"IF('Datos del candidato'!L59=\"\",\"\",'Datos del candidato'!L59)","v":""},{"$f":"IF('Datos del candidato'!M59=\"\",\"\",'Datos del candidato'!M59)","v":""}]